bitfinex/quotes_BTCUSD_20250615
["timestamp","ask_amount","ask_price","bid_price","bid_amount"]
[1750026217373,0.34,105320.0,105310.0,0.37524687]
[1750026217809,0.34,105320.0,105310.0,0.33006176]
[1750026219363,0.34,105330.0,105320.0,0.0622]
[1750026219585,0.34,105330.0,105320.0,0.32372176]
[1750026221347,0.34,105330.0,105320.0,0.32772176]
[1750026223832,0.34,105330.0,105320.0,0.32802176]
[1750026225155,0.00014186,105340.0,105330.0,0.0632]
[1750026225377,0.00014186,105340.0,105330.0,0.20564176]
[1750026226715,0.00214186,105340.0,105330.0,0.20564176]
[1750026226964,0.39940337,105340.0,105330.0,0.20564176]
[1750026227187,0.39940337,105340.0,105330.0,0.17504176]
[1750026227404,0.47712559,105340.0,105330.0,0.17504176]
[1750026227591,0.47912559,105340.0,105330.0,0.17504176]
[1750026227855,0.47912559,105340.0,105330.0,0.34028176]
[1750026228283,0.40140337,105340.0,105330.0,0.09624176]
[1750026228501,0.40140337,105340.0,105330.0,0.26144176]
[1750026229121,0.40140337,105340.0,105330.0,0.29424176]
[1750026229980,0.40140337,105340.0,105330.0,0.32554176]
[1750026230208,0.00414186,105340.0,105330.0,0.32554176]
[1750026233020,0.00414186,105340.0,105330.0,0.39259594]
[1750026233475,0.00414186,105340.0,105330.0,0.32554176]
[1750026235627,0.34414186,105340.0,105330.0,0.32554176]
[1750026238005,0.34414186,105340.0,105330.0,0.62434176]
[1750026241119,0.00414186,105340.0,105330.0,0.62434176]
[1750026241323,0.00414186,105340.0,105330.0,1.02160327]
[1750026241522,0.00414186,105340.0,105330.0,1.15532742]
[1750026241724,0.00414186,105340.0,105330.0,0.62434176]
[1750026242555,0.00414186,105340.0,105330.0,0.45914176]
[1750026243087,0.00414186,105340.0,105330.0,0.67042176]
[1750026246353,0.00414186,105340.0,105330.0,0.70799669]
[1750026247917,0.00414186,105340.0,105330.0,0.49671669]
[1750026248129,0.00414186,105340.0,105330.0,0.70783669]
[1750026248852,0.00414186,105340.0,105330.0,0.67026176]
[1750026249514,0.00414186,105340.0,105330.0,0.70783669]
[1750026249738,0.00414186,105340.0,105330.0,0.80398591]
[1750026249961,0.00414186,105340.0,105330.0,0.70783669]
[1750026251017,0.00414186,105340.0,105330.0,0.66171669]
[1750026251018,0.40140337,105340.0,105330.0,0.66171669]
[1750026251282,0.40140337,105340.0,105330.0,0.60612176]
[1750026251497,0.43360337,105340.0,105330.0,0.39504176]
[1750026251710,0.77360337,105340.0,105330.0,0.56004176]
[1750026252125,0.77360337,105340.0,105330.0,0.39504176]
[1750026252360,0.77360337,105340.0,105330.0,0.56004176]
[1750026252599,0.74140337,105340.0,105330.0,0.56004176]
[1750026253636,0.34414186,105340.0,105330.0,0.56004176]
[1750026254257,0.74140337,105340.0,105330.0,0.56004176]
[1750026255585,0.74140337,105340.0,105330.0,0.59204176]
[1750026255815,0.00414186,105340.0,105330.0,0.79418294]
[1750026256028,0.00414186,105340.0,105330.0,0.88821043]
[1750026256695,0.00214186,105340.0,105330.0,0.88821043]
[1750026256914,0.00214186,105340.0,105330.0,1.07808985]
[1750026257126,0.00414186,105340.0,105330.0,0.8977044]
[1750026257337,0.00414186,105340.0,105330.0,1.0970777]
[1750026257549,0.00414186,105340.0,105330.0,0.8977044]
[1750026257806,0.00214186,105340.0,105330.0,0.42036925]
[1750026258016,0.00214186,105340.0,105330.0,0.42236925]
[1750026258227,0.00214186,105340.0,105330.0,0.81963076]
[1750026259098,0.00014186,105340.0,105330.0,0.81963076]
[1750026259510,0.00014186,105340.0,105330.0,0.91677998]
[1750026260506,0.00014186,105340.0,105330.0,0.51951847]
[1750026260707,0.00014186,105340.0,105330.0,0.91677998]
[1750026261710,0.00014186,105340.0,105330.0,1.21557998]
[1750026263689,0.00014186,105340.0,105330.0,1.22507395]
[1750026264160,0.00014186,105340.0,105330.0,1.21557998]
[1750026265464,0.00014186,105340.0,105330.0,1.42444707]
[1750026266547,0.00014186,105340.0,105330.0,1.17800505]
[1750026266778,0.00014186,105340.0,105330.0,1.21558936]
[1750026267210,0.00014186,105340.0,105330.0,1.22508333]
[1750026267415,0.00014186,105340.0,105330.0,1.21558936]
[1750026268302,0.00014186,105340.0,105330.0,0.72205863]
[1750026268510,0.00014186,105340.0,105330.0,0.66560607]
[1750026268721,0.43508038,105350.0,105330.0,0.46314176]
[1750026268722,0.46106151,105350.0,105330.0,0.46314176]
[1750026268938,0.40388979,105350.0,105340.0,0.16484]
[1750026269151,0.0638,105340.0,105330.0,0.39804176]
[1750026269408,0.46106151,105340.0,105330.0,0.56288176]
[1750026269617,0.46106151,105340.0,105330.0,0.56188176]
[1750026269835,0.0638,105340.0,105330.0,0.56188176]
[1750026270260,0.0638,105340.0,105330.0,0.55988176]
[1750026270751,0.0638,105340.0,105330.0,0.56088176]
[1750026271177,0.0638,105340.0,105330.0,0.56288176]
[1750026273542,0.0638,105340.0,105330.0,0.09924176]
[1750026273751,0.80075014,105350.0,105330.0,0.31016176]
[1750026273960,0.40278863,105350.0,105330.0,0.41996437]
[1750026274444,0.37268863,105350.0,105330.0,0.37316176]
[1750026274867,0.40378863,105350.0,105330.0,0.37016176]
[1750026275076,0.43678863,105350.0,105330.0,0.37016176]
[1750026275216,0.40378863,105350.0,105330.0,0.37016176]
[1750026275897,0.83415014,105350.0,105330.0,0.14232176]
[1750026276115,0.80036151,105340.0,105330.0,0.09624176]
[1750026276317,0.80036151,105340.0,105330.0,0.30696176]
[1750026277148,0.4031,105340.0,105330.0,0.30696176]
[1750026277384,0.4031,105340.0,105330.0,0.30896176]
[1750026278535,0.42474327,105340.0,105330.0,0.30896176]
[1750026278731,0.82200478,105340.0,105330.0,0.30896176]
[1750026278861,0.82200478,105340.0,105330.0,0.30996176]
[1750026279063,0.42474327,105340.0,105330.0,0.30996176]
[1750026279646,0.42474327,105340.0,105330.0,0.003]
[1750026279896,0.42474327,105340.0,105330.0,0.1678]
[1750026279897,0.80036151,105340.0,105330.0,0.1678]
[1750026282764,0.4031,105340.0,105330.0,0.16776]
[1750026284128,0.80036151,105340.0,105330.0,0.16776]
[1750026284811,0.34,105340.0,105330.0,0.16776]
[1750026285047,0.34,105340.0,105330.0,0.38094976]
[1750026285291,0.34,105340.0,105330.0,0.72696327]
[1750026285516,0.34,105340.0,105330.0,1.02576327]
[1750026285765,0.03268863,105350.0,105340.0,0.0617]
[1750026290834,0.03268863,105350.0,105340.0,0.16014176]
[1750026293444,0.03268863,105350.0,105340.0,0.16251476]
[1750026293899,0.03268863,105350.0,105340.0,0.25866398]
[1750026294124,0.03268863,105350.0,105340.0,0.16014176]
[1750026294773,0.03268863,105350.0,105340.0,0.55977622]
[1750026294992,0.03268863,105350.0,105340.0,0.55740327]
[1750026295205,0.03268863,105350.0,105340.0,0.16014176]
[1750026295460,0.03268863,105350.0,105340.0,0.2962482]
[1750026295718,0.03268863,105350.0,105340.0,0.29387529]
[1750026300208,0.03268863,105350.0,105340.0,0.59267529]
[1750026300393,0.03268863,105350.0,105340.0,0.9899368]
[1750026300639,8.979e-05,105350.0,105340.0,1.22281715]
[1750026300859,8.979e-05,105350.0,105340.0,1.27926971]
[1750026301937,8.979e-05,105350.0,105340.0,1.28026971]
[1750026302373,8.979e-05,105350.0,105340.0,1.49078971]
[1750026302614,8.979e-05,105350.0,105340.0,1.4532054]
[1750026303251,8.979e-05,105350.0,105340.0,1.4552054]
[1750026304691,8.979e-05,105350.0,105340.0,0.84742389]
[1750026304924,8.979e-05,105350.0,105340.0,1.4551654]
[1750026306579,8.979e-05,105350.0,105340.0,1.44567297]
[1750026306820,8.979e-05,105350.0,105340.0,1.23519297]
[1750026307051,8.979e-05,105350.0,105340.0,1.4644581]
[1750026307276,8.979e-05,105350.0,105340.0,1.49241792]
[1750026308163,8.979e-05,105350.0,105340.0,1.47343297]
[1750026308377,8.979e-05,105350.0,105340.0,1.48292558]
[1750026308586,8.979e-05,105350.0,105340.0,1.50191053]
[1750026309266,8.979e-05,105350.0,105340.0,1.4924181]
[1750026309479,8.979e-05,105350.0,105340.0,1.50191053]
[1750026311643,8.979e-05,105350.0,105340.0,1.50187053]
[1750026313843,8.979e-05,105350.0,105340.0,1.29163053]
[1750026314085,8.979e-05,105350.0,105340.0,1.50187053]
[1750026315955,8.979e-05,105350.0,105340.0,1.52072816]
[1750026316830,8.979e-05,105350.0,105340.0,1.56972816]
[1750026317049,8.979e-05,105350.0,105340.0,1.56772816]
[1750026317265,8.979e-05,105350.0,105340.0,1.17646665]
[1750026317474,8.979e-05,105350.0,105340.0,1.57372816]
[1750026317923,0.0069286,105370.0,105360.0,0.27535729]
[1750026318107,0.0074015,105370.0,105360.0,1.33931878]
[1750026318363,0.0074015,105370.0,105360.0,1.32982806]
[1750026318574,0.0074015,105370.0,105360.0,1.33931869]
[1750026319446,0.0094015,105370.0,105360.0,1.33931869]
[1750026320302,0.0104015,105370.0,105360.0,1.33931869]
[1750026324195,0.0104015,105370.0,105360.0,1.39548863]
[1750026324453,0.0094015,105370.0,105360.0,1.79275014]
[1750026324689,0.0094015,105370.0,105360.0,1.59090352]
[1750026324925,0.0094015,105370.0,105360.0,1.34855207]
[1750026325158,0.0074015,105370.0,105360.0,1.34855207]
[1750026325645,0.0074015,105370.0,105360.0,1.74681358]
[1750026325888,0.0074015,105370.0,105360.0,1.74581358]
[1750026326105,0.0074015,105370.0,105360.0,1.74781358]
[1750026326336,0.0074015,105370.0,105360.0,1.74981358]
[1750026327715,0.0074015,105370.0,105360.0,1.79981358]
[1750026329294,0.0074015,105370.0,105360.0,1.04423754]
[1750026329542,0.0074015,105370.0,105360.0,1.83876056]
[1750026329779,0.03885821,105390.0,105380.0,0.27531955]
[1750026330018,8.974e-05,105390.0,105380.0,0.81231309]
[1750026330511,0.46125125,105390.0,105380.0,0.27506261]
[1750026330752,0.06398974,105390.0,105380.0,0.30624176]
[1750026331008,0.40398974,105390.0,105380.0,0.09624176]
[1750026331259,0.80225125,105390.0,105380.0,0.30624176]
[1750026331515,0.89840047,105390.0,105380.0,0.30624176]
[1750026331758,0.80325125,105390.0,105380.0,0.30624176]
[1750026332238,0.80325125,105390.0,105380.0,0.09624176]
[1750026332485,0.40598974,105390.0,105380.0,0.30624176]
[1750026332983,0.44407217,105390.0,105380.0,0.30624176]
[1750026333900,0.44407217,105390.0,105380.0,0.30620176]
[1750026334133,0.44407217,105390.0,105380.0,0.36595281]
[1750026335749,0.44407217,105390.0,105380.0,0.65726152]
[1750026336653,0.38017217,105390.0,105380.0,0.65726152]
[1750026336918,0.38017217,105390.0,105380.0,0.68816152]
[1750026338227,0.00208974,105390.0,105380.0,1.33104258]
[1750026338460,0.04157341,105390.0,105380.0,1.32155321]
[1750026338677,0.04157341,105390.0,105380.0,1.15074271]
[1750026338900,0.00208974,105390.0,105380.0,1.35002132]
[1750026339361,0.00208974,105390.0,105380.0,1.40645857]
[1750026339834,0.00208974,105390.0,105380.0,1.17133925]
[1750026340056,0.00208974,105390.0,105380.0,1.12389348]
[1750026340282,0.00208974,105390.0,105380.0,0.93410415]
[1750026340714,0.00208974,105390.0,105380.0,0.72414415]
[1750026340928,0.00208974,105390.0,105380.0,0.48053325]
[1750026341173,0.00208974,105390.0,105380.0,0.81804371]
[1750026342048,0.04076346,105390.0,105380.0,0.1482422]
[1750026342271,0.04076346,105390.0,105380.0,0.34354135]
[1750026342272,0.06318974,105390.0,105380.0,0.34354135]
[1750026342722,0.06318974,105390.0,105380.0,0.13370135]
[1750026342948,0.06318974,105390.0,105380.0,0.30608176]
[1750026343639,0.46045125,105390.0,105380.0,0.14184176]
[1750026343854,0.06318974,105390.0,105380.0,0.30604176]
[1750026345397,0.00208974,105390.0,105380.0,0.30604176]
[1750026345615,0.04151614,105390.0,105380.0,1.00849304]
[1750026345833,0.00208974,105390.0,105380.0,0.82819317]
[1750026346050,0.00208974,105390.0,105380.0,1.12362109]
[1750026346266,0.00208974,105390.0,105380.0,1.1425992]
[1750026346472,0.00208974,105390.0,105380.0,1.13311028]
[1750026346680,0.00208974,105390.0,105380.0,1.14259929]
[1750026347111,0.00208974,105390.0,105380.0,1.13311028]
[1750026347322,0.00208974,105390.0,105380.0,1.15208821]
[1750026347529,0.00208974,105390.0,105380.0,1.14259929]
[1750026347739,0.00208974,105390.0,105380.0,1.14259938]
[1750026347954,0.00208974,105390.0,105380.0,1.04645016]
[1750026348170,0.00208974,105390.0,105380.0,1.03696115]
[1750026348371,0.00208974,105390.0,105380.0,1.05593926]
[1750026348584,0.00208974,105390.0,105380.0,1.0464498]
[1750026348781,0.00208974,105390.0,105380.0,1.1331101]
[1750026348983,0.00208974,105390.0,105380.0,1.1425992]
[1750026349222,0.00208974,105390.0,105380.0,1.1331101]
[1750026349438,0.00208974,105390.0,105380.0,1.1425992]
[1750026349649,0.00208974,105390.0,105380.0,1.13311001]
[1750026349857,0.00208974,105390.0,105380.0,1.14259884]
[1750026350147,0.00208974,105390.0,105380.0,1.19878823]
[1750026350357,0.00208974,105390.0,105380.0,1.48060811]
[1750026350561,0.00208974,105390.0,105380.0,1.0833466]
[1750026350782,0.00208974,105390.0,105380.0,1.49009703]
[1750026351327,0.00208974,105390.0,105380.0,1.49958595]
[1750026351541,0.00208974,105390.0,105380.0,1.49958604]
[1750026351758,0.00208974,105390.0,105380.0,1.49009712]
[1750026351980,0.00208974,105390.0,105380.0,1.49958595]
[1750026352415,0.00208974,105390.0,105380.0,1.49009712]
[1750026352674,0.00208974,105390.0,105380.0,1.48060775]
[1750026352900,0.00208974,105390.0,105380.0,1.4995855]
[1750026353122,0.00208974,105390.0,105380.0,1.10276181]
[1750026353342,0.00208974,105390.0,105380.0,0.7055003]
[1750026353553,0.00208974,105390.0,105380.0,0.64931091]
[1750026354207,0.00208974,105390.0,105380.0,0.63477006]
[1750026354639,0.03518974,105390.0,105380.0,0.63477006]
[1750026355713,0.03518974,105390.0,105380.0,0.70701601]
[1750026355932,0.06608974,105390.0,105380.0,0.63477006]
[1750026357808,0.00208974,105390.0,105380.0,1.32852905]
[1750026358024,0.00208974,105390.0,105380.0,1.34725885]
[1750026359130,0.00208974,105390.0,105380.0,0.94999734]
[1750026359340,0.00208974,105390.0,105380.0,1.34725885]
[1750026359546,0.00208974,105390.0,105380.0,1.44340807]
[1750026359767,0.00208974,105390.0,105380.0,1.51899743]
[1750026360197,0.00208974,105390.0,105380.0,1.46280804]
[1750026361044,0.00208974,105390.0,105380.0,1.50226272]
[1750026361274,0.01,105430.0,105410.0,0.03794542]
[1750026361455,0.01008973,105430.0,105420.0,0.9048375]
[1750026361660,0.35008973,105430.0,105420.0,0.70326327]
[1750026361908,0.01008973,105430.0,105420.0,0.89298059]
[1750026362102,0.01008973,105430.0,105420.0,0.91195204]
[1750026362352,0.01008973,105430.0,105420.0,1.00996371]
[1750026362630,0.01208973,105430.0,105420.0,1.01819706]
[1750026362825,0.01208973,105430.0,105420.0,0.80950829]
[1750026362826,0.01308973,105430.0,105420.0,0.80950829]
[1750026362965,0.01308973,105430.0,105420.0,0.62093555]
[1750026363175,0.01308973,105430.0,105420.0,0.63990646]
[1750026363399,0.01308973,105430.0,105420.0,0.64939205]
[1750026363599,0.01308973,105430.0,105420.0,0.63042105]
[1750026363812,0.28457228,105460.0,105430.0,0.01454085]
[1750026364015,0.32416684,105460.0,105440.0,0.26036176]
[1750026364588,0.32416649,105460.0,105440.0,0.26036176]
[1750026364789,0.32416636,105460.0,105440.0,0.26036176]
[1750026365276,0.31926171,105460.0,105440.0,0.26036176]
[1750026365484,0.32226171,105460.0,105440.0,0.26036176]
[1750026365706,0.04659456,105460.0,105450.0,0.25013112]
[1750026365952,0.04659456,105460.0,105450.0,0.24997197]
[1750026366206,0.04659456,105460.0,105450.0,0.17438261]
[1750026366484,0.04159456,105460.0,105450.0,0.35320261]
[1750026366722,0.04159456,105460.0,105450.0,0.3769183]
[1750026367228,0.03759456,105460.0,105450.0,0.3769183]
[1750026367461,0.03759456,105460.0,105450.0,0.1671983]
[1750026367695,0.04159456,105460.0,105450.0,0.35308261]
[1750026367925,0.03459456,105460.0,105450.0,0.35308261]
[1750026368370,0.03459456,105460.0,105450.0,0.35508261]
[1750026368838,0.03459456,105460.0,105450.0,0.35708261]
[1750026369527,0.03459456,105460.0,105450.0,0.32438261]
[1750026370408,0.03459456,105460.0,105450.0,0.32434261]
[1750026371141,0.03459456,105460.0,105450.0,0.61565132]
[1750026371606,0.03459456,105460.0,105450.0,0.64885132]
[1750026372704,0.03459456,105460.0,105450.0,0.43929132]
[1750026373143,0.79686501,105460.0,105450.0,0.55559047]
[1750026373570,0.42529456,105460.0,105450.0,0.55559047]
[1750026374027,0.87655151,105460.0,105450.0,0.38955047]
[1750026374253,0.87655151,105460.0,105450.0,0.29330871]
[1750026374475,0.87655151,105460.0,105450.0,0.45730871]
[1750026374692,0.87655151,105460.0,105450.0,0.29130871]
[1750026375142,0.0516,105450.0,105420.0,0.29130871]
[1750026375371,0.5109156,105450.0,105440.0,0.04552]
[1750026375809,0.4796156,105450.0,105430.0,0.09624176]
[1750026376023,0.4796156,105450.0,105440.0,0.164]
[1750026376257,0.3603,105440.0,105430.0,0.38755047]
[1750026376477,0.76317045,105440.0,105430.0,0.42930124]
[1750026377374,0.3916,105440.0,105430.0,0.42930124]
[1750026377839,0.3916,105440.0,105430.0,0.26530124]
[1750026378080,0.3916,105440.0,105430.0,0.42930124]
[1750026378516,0.3916,105440.0,105430.0,0.47678336]
[1750026378948,0.3916,105450.0,105430.0,0.57302512]
[1750026379159,0.3916,105450.0,105430.0,0.57402512]
[1750026379380,0.34,105450.0,105430.0,0.57402512]
[1750026379584,0.34,105450.0,105430.0,0.60702512]
[1750026379795,0.34,105450.0,105430.0,0.60602512]
[1750026380014,0.34,105450.0,105430.0,0.34072388]
[1750026380226,0.34,105440.0,105430.0,0.14176176]
[1750026380444,0.34,105440.0,105430.0,0.30576176]
[1750026381115,0.34,105440.0,105430.0,0.09624176]
[1750026381326,0.34,105440.0,105430.0,0.30576176]
[1750026381541,0.41631705,105440.0,105430.0,0.09624176]
[1750026381761,0.46741705,105440.0,105430.0,0.30776176]
[1750026382185,0.46741705,105440.0,105430.0,0.30876176]
[1750026382596,0.44711705,105440.0,105430.0,0.30876176]
[1750026383212,0.3708,105440.0,105430.0,0.30876176]
[1750026383418,0.34,105440.0,105430.0,0.30876176]
[1750026383822,0.34,105440.0,105430.0,0.37126176]
[1750026384460,0.34,105440.0,105430.0,0.34006176]
[1750026384669,0.34,105440.0,105430.0,0.30876176]
[1750026385307,0.34890558,105440.0,105430.0,0.30876176]
[1750026385521,0.34890571,105440.0,105430.0,0.30876176]
[1750026385973,0.37998057,105440.0,105430.0,0.003]
[1750026386186,0.4397863,105440.0,105430.0,0.21248]
[1750026386396,0.43088057,105440.0,105430.0,0.21248]
[1750026386884,0.43978649,105440.0,105430.0,0.21248]
[1750026387131,0.4397865,105440.0,105430.0,0.21248]
[1750026387343,0.03950593,105440.0,105430.0,0.21248]
[1750026387550,0.03950592,105440.0,105430.0,0.21248]
[1750026387784,0.03950589,105440.0,105430.0,0.21248]
[1750026387994,0.0306,105440.0,105430.0,0.21248]
[1750026388221,0.42175282,105440.0,105430.0,0.21248]
[1750026388443,0.37950583,105440.0,105430.0,0.21248]
[1750026388651,0.3706,105440.0,105430.0,0.21248]
[1750026388863,0.37950571,105440.0,105430.0,0.21248]
[1750026389083,0.3706,105440.0,105430.0,0.21248]
[1750026389755,0.34,105440.0,105430.0,0.21248]
[1750026390390,0.34,105440.0,105430.0,0.003]
[1750026390838,0.34,105440.0,105430.0,0.16696]
[1750026391027,0.34,105440.0,105430.0,0.003]
[1750026391241,0.34,105440.0,105430.0,0.16696]
[1750026391448,0.34,105440.0,105430.0,0.003]
[1750026391590,0.44631705,105440.0,105430.0,0.16696]
[1750026391808,0.3701,105440.0,105430.0,0.21248]
[1750026393580,0.34,105440.0,105430.0,0.21248]
[1750026395674,0.08122307,105450.0,105430.0,0.21248]
[1750026395942,0.08122307,105450.0,105430.0,0.24488]
[1750026396581,0.0531,105450.0,105430.0,0.24288]
[1750026396787,0.42749456,105460.0,105430.0,0.37122176]
[1750026396988,0.51909769,105460.0,105430.0,0.37022176]
[1750026397222,0.001,105450.0,105430.0,0.37022176]
[1750026397434,0.002,105450.0,105430.0,0.37022176]
[1750026397851,0.01090543,105450.0,105430.0,0.37022176]
[1750026398058,0.00990543,105450.0,105430.0,0.37022176]
[1750026398296,0.09974623,105450.0,105440.0,0.16392]
[1750026398582,0.09974624,105450.0,105440.0,0.16392]
[1750026398820,0.09874624,105450.0,105440.0,0.16392]
[1750026399060,0.48728503,105450.0,105440.0,0.16392]
[1750026399302,0.39744425,105450.0,105440.0,0.16392]
[1750026399507,0.40634971,105450.0,105440.0,0.16392]
[1750026399710,0.39844425,105450.0,105440.0,0.16392]
[1750026399920,0.40734971,105450.0,105440.0,0.16392]
[1750026400331,0.40634971,105450.0,105430.0,0.16074176]
[1750026400535,0.73644425,105440.0,105430.0,0.20614176]
[1750026400749,0.74535006,105440.0,105430.0,0.37006176]
[1750026400958,0.74535008,105440.0,105430.0,0.37006176]
[1750026401185,0.73644425,105440.0,105430.0,0.37006176]
[1750026401391,0.74535008,105440.0,105430.0,0.37006176]
[1750026401598,0.73644425,105440.0,105430.0,0.37006176]
[1750026401803,0.74535008,105440.0,105430.0,0.33796176]
[1750026402028,0.83079295,105440.0,105430.0,0.12864176]
[1750026402247,0.74535011,105440.0,105430.0,0.001]
[1750026402494,0.74535012,105440.0,105430.0,0.16488]
[1750026402721,0.74535035,105440.0,105430.0,0.001]
[1750026402958,0.74535035,105440.0,105430.0,0.16488]
[1750026402959,0.7453503,105440.0,105430.0,0.16488]
[1750026403199,0.82314542,105440.0,105430.0,0.001]
[1750026403432,0.82314542,105440.0,105430.0,0.16588]
[1750026403740,0.81423928,105440.0,105430.0,0.16588]
[1750026404005,0.82314542,105440.0,105430.0,0.16588]
[1750026404266,0.81423928,105440.0,105430.0,0.16588]
[1750026404538,0.82314542,105440.0,105430.0,0.16588]
[1750026404828,0.82314533,105440.0,105430.0,0.16588]
[1750026405267,0.82314528,105440.0,105430.0,0.16588]
[1750026405269,0.82314537,105440.0,105430.0,0.16588]
[1750026405515,0.82314534,105440.0,105430.0,0.16588]
[1750026405740,0.42670098,105440.0,105430.0,0.16588]
[1750026405979,0.81423928,105440.0,105430.0,0.16588]
[1750026406207,0.8231452,105440.0,105430.0,0.16588]
[1750026406939,0.81423928,105440.0,105430.0,0.16588]
[1750026407371,0.82314529,105440.0,105430.0,0.16588]
[1750026407624,0.81423928,105440.0,105430.0,0.002]
[1750026407892,1.27128972,105440.0,105430.0,0.16588]
[1750026408123,0.86593928,105440.0,105430.0,0.002]
[1750026408357,0.87484627,105440.0,105430.0,0.002]
[1750026408589,0.8748463,105440.0,105430.0,0.002]
[1750026408825,0.88152674,105440.0,105430.0,0.001]
[1750026409065,0.88152676,105440.0,105420.0,0.16384]
[1750026409298,0.47940217,105440.0,105420.0,0.19674]
[1750026409529,0.73644425,105430.0,105420.0,0.22804]
[1750026410511,0.73644425,105430.0,105420.0,0.0642]
[1750026410725,0.73644425,105430.0,105420.0,0.22804]
[1750026410965,0.74535129,105430.0,105420.0,0.22904]
[1750026411422,0.74535128,105430.0,105420.0,0.22904]
[1750026411612,0.73644425,105430.0,105420.0,0.22904]
[1750026412322,0.34,105430.0,105420.0,0.257488]
[1750026412565,0.34,105430.0,105420.0,0.23004]
[1750026412791,0.001,105440.0,105420.0,0.32628176]
[1750026413011,0.341,105440.0,105430.0,0.0661]
[1750026413230,0.34987934,105440.0,105430.0,0.0661]
[1750026413444,0.34987929,105440.0,105430.0,0.0661]
[1750026413889,0.341,105440.0,105430.0,0.16234176]
[1750026414102,0.342,105440.0,105430.0,0.20261887]
[1750026414560,0.02819829,105450.0,105430.0,0.13651887]
[1750026414791,0.02819829,105450.0,105440.0,0.22804]
[1750026415017,0.7799176,105460.0,105450.0,0.0313]
[1750026415235,0.77991765,105460.0,105450.0,0.0313]
[1750026415447,0.82313881,105460.0,105440.0,0.0622]
[1750026415696,0.39644425,105450.0,105440.0,0.19514]
[1750026415917,0.40532315,105450.0,105440.0,0.19514]
[1750026416147,0.42422851,105450.0,105440.0,0.19514]
[1750026416371,0.43410742,105450.0,105440.0,0.19514]
[1750026416811,0.42422851,105450.0,105440.0,0.19514]
[1750026417074,0.43310741,105450.0,105440.0,0.19514]
[1750026417300,0.42522851,105450.0,105440.0,0.19514]
[1750026417951,0.43410741,105450.0,105440.0,0.19514]
[1750026418173,0.42522851,105450.0,105440.0,0.19514]
[1750026418424,0.42522851,105450.0,105440.0,0.23197218]
[1750026418646,0.43610738,105450.0,105440.0,0.26407218]
[1750026418874,0.4361074,105450.0,105440.0,0.26407218]
[1750026419086,0.42722851,105450.0,105440.0,0.26407218]
[1750026419323,0.0095055,105450.0,105440.0,0.26407218]
[1750026419584,0.0006,105450.0,105440.0,0.75675819]
[1750026419787,0.0006,105450.0,105440.0,1.05949958]
[1750026420018,0.0006,105450.0,105440.0,1.06898364]
[1750026420265,0.0006,105450.0,105440.0,1.15869785]
[1750026420491,0.0006,105450.0,105440.0,1.12122715]
[1750026420714,0.0006,105450.0,105440.0,0.95738733]
[1750026420936,0.001,105450.0,105440.0,0.47856084]
[1750026421155,0.001,105450.0,105440.0,0.47920339]
[1750026421403,0.001,105450.0,105440.0,0.21675734]
[1750026421618,0.001,105450.0,105440.0,0.20221649]
[1750026421845,0.39744425,105450.0,105440.0,0.20221649]
[1750026422082,0.39644425,105450.0,105440.0,0.37390176]
[1750026422315,0.44053848,105450.0,105440.0,0.37390176]
[1750026422541,0.39644425,105450.0,105440.0,0.16474176]
[1750026422773,0.39644425,105450.0,105440.0,0.16674176]
[1750026423011,0.00890472,105450.0,105440.0,0.0375]
[1750026423250,0.37166175,105450.0,105440.0,0.16876]
[1750026423483,0.41546738,105450.0,105440.0,0.16676]
[1750026423734,0.42437284,105450.0,105440.0,0.16676]
[1750026423997,0.42437286,105450.0,105440.0,0.16476]
[1750026424230,0.42437282,105450.0,105440.0,0.16576]
[1750026424466,0.42437293,105450.0,105440.0,0.16576]
[1750026424745,0.42437286,105450.0,105440.0,0.16476]
[1750026424965,0.42537291,105450.0,105440.0,0.16476]
[1750026425212,0.42537287,105450.0,105440.0,0.16376]
[1750026425433,0.42537291,105450.0,105430.0,0.27096]
[1750026425641,0.00990553,105450.0,105430.0,0.33570176]
[1750026425855,0.001,105450.0,105440.0,0.0645]
[1750026426072,0.00990532,105450.0,105440.0,0.0645]
[1750026426280,0.001,105450.0,105440.0,0.0645]
[1750026426493,0.00990501,105450.0,105440.0,0.0315]
[1750026426723,0.00990521,105450.0,105440.0,0.0315]
[1750026426947,0.00990524,105450.0,105440.0,0.0315]
[1750026427194,0.40625631,105460.0,105440.0,0.0315]
[1750026427413,0.341,105450.0,105440.0,0.16372]
[1750026427861,0.34890554,105450.0,105440.0,0.16372]
[1750026428080,0.38156742,105450.0,105440.0,0.16372]
[1750026428299,0.38156742,105450.0,105430.0,0.20574176]
[1750026428505,0.38156746,105450.0,105430.0,0.36946176]
[1750026429782,0.38156746,105450.0,105430.0,0.41396687]
[1750026429991,0.38156754,105450.0,105430.0,0.41396687]
[1750026430207,0.34,105440.0,105430.0,0.41396687]
[1750026430418,0.34,105440.0,105430.0,0.36946176]
[1750026430849,0.34,105440.0,105430.0,0.16034176]
[1750026431109,0.34,105440.0,105430.0,0.32406176]
[1750026431528,0.34,105440.0,105430.0,0.32506176]
[1750026431872,0.34,105440.0,105430.0,0.32606176]
[1750026432335,0.34,105440.0,105430.0,0.22982]
[1750026432548,0.71166175,105440.0,105430.0,0.22982]
[1750026432966,0.34,105440.0,105430.0,0.22982]
[1750026433398,0.41400135,105440.0,105430.0,0.16572]
[1750026433609,0.34,105440.0,105430.0,0.16572]
[1750026433823,0.72056798,105440.0,105430.0,0.19632]
[1750026434030,0.71166175,105440.0,105430.0,0.19632]
[1750026434251,0.720568,105440.0,105430.0,0.19632]
[1750026434461,0.72056801,105440.0,105430.0,0.16572]
[1750026434696,0.71166175,105440.0,105430.0,0.0323]
[1750026434925,0.720568,105440.0,105430.0,0.19598]
[1750026435343,0.72056799,105440.0,105430.0,0.19598]
[1750026435568,0.720568,105440.0,105430.0,0.19598]
[1750026436006,0.71166175,105440.0,105430.0,0.19598]
[1750026439060,0.34,105440.0,105430.0,0.28954894]
[1750026439265,0.02835171,105450.0,105440.0,0.0313]
[1750026439490,0.78574489,105460.0,105440.0,0.0313]
[1750026439713,0.37166175,105450.0,105440.0,0.0313]
[1750026440806,0.34,105440.0,105430.0,0.22798]
[1750026441019,0.34,105440.0,105430.0,0.32422176]
[1750026441224,0.34,105440.0,105430.0,0.32322176]
[1750026442304,0.34,105440.0,105430.0,0.32422176]
[1750026442543,0.34,105440.0,105430.0,0.32522176]
[1750026443791,0.78571904,105440.0,105430.0,0.22894]
[1750026444413,0.79462518,105440.0,105430.0,0.22894]
[1750026444653,0.79462528,105440.0,105430.0,0.002]
[1750026444868,0.7946254,105440.0,105430.0,0.002]
[1750026445081,0.72056816,105440.0,105430.0,0.0341]
[1750026445296,0.34,105440.0,105430.0,0.0669]